bitfinex/quotes_ETHUSD_20250210
["timestamp","ask_amount","ask_price","bid_price","bid_amount"]
[1739213502292,4.48036,2683.1,2682.5,3.72776]
[1739213502495,3.72726,2683.0,2682.3,3.72805]
[1739213502789,0.7533,2682.5,2682.1,3.72834]
[1739213503191,0.7533,2682.5,2681.9,1.0409]
[1739213503192,0.7533,2683.0,2682.5,3.7278]
[1739213503490,0.7533,2683.0,2682.7,3.72757]
[1739213505091,0.7533,2683.0,2682.7,7.45506]
[1739213505752,0.7533,2683.0,2682.7,3.72749]
[1739213506692,0.7533,2683.0,2682.7,7.45499]
[1739213506869,0.7533,2683.0,2682.8,3.72744]
[1739213507198,0.7533,2683.0,2682.7,3.72749]
[1739213511587,0.7533,2683.0,2682.4,4.4909]
[1739213511782,0.7533,2683.0,2682.6,3.72771]
[1739213512298,0.7533,2683.0,2682.7,3.72757]
[1739213512705,6.21001715,2683.5,2682.9,3.72731]
[1739213512706,0.8262,2683.3,2682.9,3.72731]
[1739213512862,0.8262,2683.3,2682.7,3.72757]
[1739213512863,4.55295,2683.3,2682.8,3.72742]
[1739213513265,0.8262,2683.0,2682.5,3.72774]
[1739213513675,0.8262,2683.0,2682.6,3.72767]
[1739213515215,4.5534,2683.0,2682.6,3.72767]
[1739213516477,3.72732,2682.9,2682.4,3.72791]
[1739213516676,3.72745,2682.8,2682.3,5.25269336]
[1739213516981,0.8262,2682.7,2682.3,3.72803]
[1739213518084,0.8262,2682.7,2682.3,3.72814]
[1739213518287,0.8262,2683.1,2682.5,3.72786]
[1739213518520,0.8262,2683.1,2683.0,3.72708]
[1739213519074,0.8262,2683.1,2682.6,3.72759]
[1739213519389,0.8262,2683.1,2682.7,3.72749]
[1739213519737,0.8262,2683.1,2682.8,3.72735]
[1739213520688,0.8262,2683.5,2683.0,3.72717]
[1739213520895,0.8262,2683.5,2683.0,0.03727112]
[1739213521094,0.8262,2683.5,2683.4,3.72661]
[1739213521302,0.8262,2684.0,2683.3,3.72673]
[1739213521487,0.8262,2684.4,2683.7,0.7629]
[1739213521691,0.8262,2684.4,2684.2,3.72546]
[1739213521875,0.8262,2684.4,2684.3,3.72536]
[1739213522103,0.8262,2684.4,2684.2,3.72546]
[1739213522311,0.8262,2684.4,2684.2,3.72539]
[1739213522680,0.8262,2684.4,2684.0,3.72571]
[1739213522882,0.8236,2684.7,2684.2,3.7255]
[1739213523135,0.8236,2685.0,2684.5,3.72498]
[1739213523430,0.8236,2685.0,2684.6,3.7249]
[1739213523582,0.8236,2685.0,2684.5,3.72498]
[1739213524197,0.8236,2685.0,2684.4,3.72513]
[1739213524394,0.8236,2685.0,2684.5,3.72508]
[1739213524817,4.5481,2685.0,2684.3,3.72526]
[1739213525026,4.5481,2685.0,2684.1,4.48847]
[1739213525218,3.72469,2684.8,2684.1,4.48847]
[1739213525445,0.8236,2685.0,2683.9,3.72584]
[1739213525650,3.72489,2684.7,2684.0,3.72574]
[1739213525810,3.72489,2684.7,2683.9,3.7630915]
[1739213526012,3.72489,2684.7,2684.1,3.72558]
[1739213526327,3.72489,2684.7,2684.1,0.03725148]
[1739213526534,3.7251,2684.5,2684.1,0.03725148]
[1739213526840,3.72453,2684.9,2683.4,5.25269336]
[1739213526841,2.48350715,2684.4,2683.4,5.25269336]
[1739213527156,3.30300715,2684.3,2683.1,0.7629]
[1739213527449,3.72663,2683.4,2683.1,0.7629]
[1739213527952,7.45336,2683.4,2683.1,0.7629]
[1739213528248,0.8195,2683.7,2683.1,0.7629]
[1739213528249,3.72644,2683.6,2683.1,0.7629]
[1739213530029,3.72657,2683.5,2683.1,0.7629]
[1739213530647,3.72677,2683.3,2682.8,0.7629]
[1739213531974,3.72657,2683.5,2682.8,0.7629]
[1739213532175,3.72663,2683.4,2682.8,0.7629]
[1739213532379,3.72676,2683.3,2682.8,0.7629]
[1739213532596,3.72633,2683.6,2682.8,0.7629]
[1739213532880,3.72753,2682.8,2682.6,5.25269336]
[1739213533036,0.8195,2683.1,2682.4,5.25269336]
[1739213533239,3.72786,2682.5,2682.4,5.25269336]
[1739213534139,3.72773,2682.6,2682.4,5.25269336]
[1739213534341,7.45434,2683.0,2681.8,6.01559336]
[1739213534644,3.72824,2682.3,2681.9,0.73014379]
[1739213534858,3.72806,2682.4,2681.9,0.73014379]
[1739213536143,3.72745,2682.8,2682.3,3.72814]
[1739213536352,3.72729,2683.0,2682.5,3.72786]
[1739213537163,3.72762,2682.7,2682.4,0.7629]
[1739213537490,3.72766,2682.7,2682.4,0.7629]
[1739213537791,3.72783,2682.6,2682.1,6.01559336]
[1739213538159,3.7274,2682.9,2682.3,3.72813]
[1739213538346,3.7274,2682.9,2682.4,0.03727623]
[1739213538544,4.54658,2683.1,2682.6,3.7277]
[1739213538785,3.72681,2683.3,2682.6,3.72759]
[1739213538964,3.72704,2683.1,2682.6,3.72759]
[1739213539790,3.72704,2683.1,2682.5,3.72777]
[1739213540307,3.72758,2682.8,2682.2,3.72822]
[1739213540596,3.72781,2682.6,2682.1,6.01559336]
[1739213541003,3.72781,2682.6,2682.1,9.74400336]
[1739213541207,4.51641,2682.8,2682.1,6.01559336]
[1739213541363,4.51641,2682.8,2682.2,3.7282]
[1739213541364,4.51644,2682.8,2682.2,3.7282]
[1739213541763,3.72768,2682.7,2682.2,3.7282]
[1739213542616,3.72784,2682.6,2682.1,6.01559336]
[1739213542905,3.72797,2682.5,2682.1,5.25269336]
[1739213543110,3.72828,2682.2,2682.1,5.25269336]
[1739213543280,3.72833,2682.2,2681.9,5.25269336]
[1739213543469,3.72803,2682.4,2681.9,5.25269336]
[1739213543664,0.7889,2682.8,2681.9,5.25269336]
[1739213543907,3.72794,2682.5,2681.9,8.98127336]
[1739213544280,3.72794,2682.5,2682.0,3.72852]
[1739213545093,7.45591,2682.5,2681.9,8.98130336]
[1739213546032,3.72794,2682.5,2681.9,5.25269336]
[1739213546191,0.7889,2682.4,2681.9,5.25269336]
[1739213546397,3.72856,2682.0,2681.9,5.25269336]
[1739213546706,3.72823,2682.3,2681.7,3.7289]
[1739213547295,3.72822,2682.3,2681.8,3.72882]
[1739213547530,3.72774,2682.6,2682.1,4.49123]
[1739213547714,3.72807,2682.4,2682.1,0.7629]
[1739213547920,3.72787,2682.5,2682.0,3.72855]
[1739213549016,8.24426,2682.7,2682.0,3.72848]
[1739213549327,4.51655,2682.7,2682.1,3.72832]
[1739213549530,3.72772,2682.6,2682.0,3.72848]
[1739213549731,3.72784,2682.6,2682.0,3.72848]
[1739213550456,3.72784,2682.6,2682.0,7.45695]
[1739213550641,3.72772,2682.6,2682.0,3.72847]
[1739213551174,3.72772,2682.6,2682.1,3.72839]
[1739213551460,3.72775,2682.6,2682.1,3.72839]
[1739213551663,3.72775,2682.6,2682.0,3.72847]
[1739213551962,3.72783,2682.6,2682.0,3.72847]
[1739213552255,3.72783,2682.6,2682.0,7.45695]
[1739213552468,3.72783,2682.6,2682.0,3.72847]
[1739213552765,3.72788,2682.5,2682.0,3.72847]
[1739213553675,0.7889,2682.7,2681.8,4.49168]
[1739213553830,3.72849,2682.1,2681.8,0.7629]
[1739213554029,3.72828,2682.2,2681.6,4.49194]
[1739213554237,3.72823,2682.3,2681.8,3.72881]
[1739213554439,3.72823,2682.3,2681.7,3.72891]
[1739213554634,3.72823,2682.3,2681.6,4.49194]
[1739213554849,3.72823,2682.3,2681.7,3.72897]
[1739213555099,3.7283,2682.2,2681.7,3.72897]
[1739213555474,4.51654,2682.7,2682.0,3.72848]
[1739213555668,6.72737,2682.9,2682.1,0.7629]
[1739213555901,3.72737,2682.9,2682.4,3.728]
[1739213556106,3.72745,2682.8,2682.3,3.72803]
[1739213556879,3.72745,2682.8,2682.3,7.45606]
[1739213557083,3.72696,2683.2,2682.7,0.7629]
[1739213557282,3.72656,2683.5,2682.9,3.72727]
[1739213557600,3.7262,2683.7,2683.1,3.72698]
[1739213557998,3.7262,2683.7,2682.9,3.72726]
[1739213558332,3.72647,2683.5,2683.0,3.72716]
[1739213558486,3.7262,2683.7,2683.1,3.72701]
[1739213558900,3.72635,2683.6,2683.1,3.72701]
[1739213559212,3.72635,2683.6,2683.0,3.72711]
[1739213559415,3.72655,2683.5,2682.9,3.72719]
[1739213560233,3.72655,2683.5,2682.9,7.45442]
[1739213560537,3.72618,2683.8,2683.3,4.48963]
[1739213560692,3.72618,2683.8,2683.3,4.52689344]
[1739213560892,3.72618,2683.8,2683.3,0.7629]
[1739213561741,3.72615,2683.8,2683.3,0.7629]
[1739213562034,3.72634,2683.6,2683.3,0.7629]
[1739213564199,3.72607,2683.8,2683.3,0.7629]
[1739213564397,3.72586,2684.0,2683.3,0.7629]
[1739213564602,3.76269604,2684.1,2683.4,0.03726528]
[1739213564833,7.48836604,2684.1,2683.6,3.72626]
[1739213565312,6.72567,2684.1,2683.6,3.72626]
[1739213566123,3.72567,2684.1,2683.6,3.72626]
[1739213566332,3.7255,2684.2,2683.7,3.72612]
[1739213566827,3.7255,2684.2,2683.4,3.72661]
[1739213567035,3.7255,2684.2,2683.7,3.72608]
[1739213567403,7.45109,2684.2,2683.6,3.72625]
[1739213567698,3.7255,2684.2,2683.6,3.72625]
[1739213567924,7.45112,2684.2,2683.6,3.72625]
[1739213568129,3.7255,2684.2,2683.6,3.72625]
[1739213568514,7.4511,2684.2,2683.6,3.72625]
[1739213569345,0.7889,2684.4,2683.6,3.72625]
[1739213569346,3.7889,2684.4,2683.6,3.72625]
[1739213569803,0.7889,2684.4,2683.6,7.45251]
[1739213570144,3.72539,2684.3,2683.6,3.72625]
[1739213570340,3.72539,2684.3,2683.7,3.72609]
[1739213571045,3.72539,2684.3,2683.8,3.72605]
[1739213571340,3.27240715,2684.4,2683.9,3.72592]
[1739213571541,0.7889,2684.4,2684.0,3.72577]
[1739213572206,0.7889,2684.4,2684.0,3.72569]
[1739213572505,0.7889,2684.4,2684.1,3.72561]
[1739213572706,0.7889,2684.4,2684.1,3.72564]
[1739213573663,0.7889,2684.4,2684.2,3.72536]
[1739213573864,6.1816,2684.8,2684.3,3.72529]
[1739213574153,0.8316,2684.8,2684.7,3.72481]
[1739213574337,0.8316,2685.1,2684.7,3.72481]
[1739213574652,0.8316,2685.1,2684.8,3.72458]
[1739213575223,0.8316,2685.1,2684.9,3.7245]
[1739213575411,0.8316,2685.4,2685.0,3.72439]
[1739213575812,0.8316,2685.4,2685.1,3.72425]
[1739213576222,0.8316,2685.4,2685.2,3.72406]
[1739213577867,0.8316,2685.4,2685.0,3.7243]
[1739213578013,3.72397,2685.3,2684.8,3.72465]
[1739213578210,3.72415,2685.2,2684.6,3.72486]
[1739213578457,3.72415,2685.2,2684.7,3.7248]
[1739213579086,2.48350715,2685.3,2684.8,3.72454]
[1739213579238,0.8316,2685.4,2684.9,3.72445]
[1739213579444,0.8316,2685.4,2685.0,3.72438]
[1739213580436,0.8316,2685.4,2684.8,3.72454]
[1739213580628,6.20756715,2685.3,2684.8,3.72454]
[1739213581178,9.93167715,2685.3,2684.8,3.72454]
[1739213581385,0.8316,2684.9,2684.5,3.72504]
[1739213581546,3.8316,2684.9,2684.0,0.278]
[1739213581874,3.72502,2684.6,2684.0,4.0037]
[1739213582181,0.7622,2685.2,2685.1,3.72425]
[1739213582757,0.7622,2685.5,2685.4,3.72384]
[1739213583454,0.7622,2685.5,2685.3,3.72396]
[1739213583860,2.48350715,2685.6,2685.1,3.72413]
[1739213584066,3.09808015,2685.7,2685.3,3.72396]
[1739213584885,3.09808015,2685.7,2685.2,3.7241]
[1739213585118,6.82153015,2685.7,2685.2,3.7241]
[1739213585622,10.54502015,2685.7,2685.1,0.7526]
[1739213585783,3.72359,2685.6,2685.1,0.7526]
[1739213586205,3.72359,2685.6,2685.0,3.72427]
[1739213586574,3.7237,2685.5,2685.0,3.72427]
[1739213586802,3.72411,2685.2,2684.7,5.25269336]
[1739213587414,2.48350715,2685.3,2684.8,3.72466]
[1739213587625,4.48612,2685.4,2684.8,3.72466]
[1739213587773,6.20714715,2685.6,2684.7,5.25269336]
[1739213587985,2.48350715,2685.6,2685.1,3.72416]
[1739213588301,6.20719715,2685.6,2685.0,3.72437]
[1739213588598,6.20714715,2685.6,2684.9,3.72444]
[1739213588773,6.20714715,2685.6,2685.0,3.72438]
[1739213588774,3.72379,2685.5,2685.0,3.72438]
[1739213588974,8.44808015,2685.7,2685.1,3.72422]
[1739213589282,12.17151015,2685.7,2684.9,3.72443]
[1739213589611,12.17151015,2685.7,2685.0,3.72439]
[1739213589910,8.44808015,2685.7,2685.1,3.72415]
[1739213590120,8.44808015,2685.7,2685.3,3.72389]
[1739213590416,8.44808015,2685.7,2685.3,7.44777]
[1739213590616,8.44808015,2685.7,2685.3,3.72388]
[1739213591174,8.44808015,2685.7,2685.1,0.7526]
[1739213591376,7.68588015,2685.7,2685.6,3.72356]
[1739213591806,7.68588015,2685.7,2685.5,3.72368]
[1739213592113,7.68588015,2685.7,2685.3,3.72389]
[1739213592290,7.68588015,2685.7,2685.4,3.72383]
[1739213592615,7.68588015,2685.7,2685.3,3.72396]
[1739213592816,7.68588015,2685.7,2685.1,0.7526]
[1739213593000,4.48599,2685.5,2685.0,3.7243]
[1739213593208,0.7622,2685.5,2684.9,3.72452]
[1739213593415,3.72392,2685.4,2684.9,3.72452]
[1739213593575,3.72413,2685.2,2684.8,0.7526]
[1739213593775,3.72384,2685.4,2684.8,0.7526]
[1739213593976,3.7242,2685.2,2684.8,0.7526]
[1739213594207,3.72456,2684.9,2684.5,0.7526]
[1739213594402,0.7622,2684.9,2684.1,0.7526]
[1739213594615,3.72467,2684.8,2684.2,3.72547]
[1739213595408,3.72467,2684.8,2684.2,7.45089]
[1739213595715,3.72467,2684.8,2684.2,3.72542]
[1739213595926,3.72467,2684.8,2684.2,7.4508]
[1739213596105,0.7622,2684.9,2684.3,3.72533]
[1739213596308,0.7622,2684.9,2684.4,3.72521]
[1739213596823,4.48674,2684.9,2684.2,7.45076]
[1739213597026,4.48674,2684.9,2684.2,3.72538]
[1739213597327,3.7247,2684.8,2684.2,3.72538]
[1739213597724,0.7622,2684.9,2684.3,3.72534]
[1739213598097,0.7622,2684.9,2684.1,0.7526]
[1739213598301,3.72446,2685.0,2684.4,3.72513]
[1739213598690,3.72454,2684.9,2684.2,3.7254]
[1739213598916,7.44898,2685.0,2684.2,7.45077]
[1739213599226,9.0739,2685.4,2684.5,0.7629]
[1739213599428,6.1143,2685.4,2684.5,0.7629]
[1739213599726,3.72433,2685.1,2684.5,0.7629]
[1739213599914,3.72446,2685.0,2684.5,0.7629]
[1739213600225,0.7643,2685.1,2684.1,0.7629]
[1739213600390,3.72462,2684.9,2684.2,3.72549]
[1739213600591,3.72439,2685.0,2684.1,0.7629]
[1739213600592,3.72492,2684.7,2684.1,0.7629]
[1739213601192,3.72462,2684.9,2684.1,4.48852]
[1739213601501,3.72467,2684.8,2684.1,4.48852]
[1739213602034,3.72453,2684.9,2684.2,3.72542]
[1739213602229,0.7643,2685.1,2684.5,0.7629]
[1739213602528,4.48862,2685.1,2684.5,4.48797]
[1739213602697,4.48862,2685.1,2684.5,0.7629]
[1739213602902,0.7643,2685.1,2684.1,0.7629]
[1739213603091,3.7247,2684.8,2684.1,4.4884]
[1739213603293,0.7643,2685.1,2684.1,0.7629]
[1739213603517,0.7643,2685.1,2684.2,3.7254]
[1739213603858,3.72468,2684.8,2684.1,0.7629]
[1739213604061,3.72499,2684.6,2684.1,0.7629]
[1739213604462,6.72403,2685.3,2683.8,0.7629]
[1739213604463,0.7643,2684.7,2683.8,0.7629]
[1739213604760,3.72536,2684.3,2683.8,1.0409]
[1739213604923,3.72511,2684.5,2683.8,4.76687]
[1739213605258,3.72511,2684.5,2683.8,1.0409]
[1739213605462,4.48921,2684.7,2683.8,4.76694]
[1739213605661,4.48921,2684.7,2683.8,4.76686]
[1739213605833,3.7251,2684.5,2683.8,4.76686]
[1739213606038,3.7251,2684.5,2683.8,8.49284]
[1739213606363,3.72496,2684.6,2683.9,3.72583]
[1739213606657,0.7643,2684.7,2684.1,3.72555]
[1739213606859,6.1143,2685.0,2684.1,0.7629]
[1739213607162,3.72463,2684.9,2684.2,3.72543]
[1739213607357,9.8387,2685.0,2684.2,3.72543]
[1739213607654,6.1143,2685.0,2684.2,3.72543]
[1739213607817,3.7246,2684.9,2684.3,3.72528]
[1739213608019,9.83878,2685.0,2684.3,3.72528]
[1739213608364,6.1143,2685.0,2684.4,7.45028]
[1739213608560,6.1143,2685.0,2684.4,3.72513]
[1739213608867,5.35,2685.0,2684.5,0.7629]
[1739213609069,5.35,2685.0,2684.2,3.7255]
[1739213609070,3.72479,2684.8,2684.2,0.7629]
[1739213609219,3.72495,2684.6,2684.2,0.7629]
[1739213609862,3.72525,2684.4,2683.9,0.7629]
[1739213610020,0.8054,2684.8,2683.9,0.7629]
[1739213610225,3.72568,2684.1,2683.5,0.7629]
[1739213610519,4.53086,2684.3,2683.6,4.00431]
[1739213610831,3.72558,2684.2,2683.6,0.278]
[1739213611234,3.72581,2684.0,2683.6,0.278]
[1739213611460,3.72581,2684.0,2683.5,0.7629]
[1739213611981,0.8054,2684.3,2683.5,0.7629]
[1739213612180,3.72613,2683.8,2683.5,0.7629]
[1739213612338,3.72613,2683.8,2683.3,0.19451787]
[1739213612679,4.53153,2683.8,2683.3,0.19451787]
[1739213613257,4.53126,2684.0,2683.3,0.19451787]
[1739213614452,4.53126,2684.0,2683.3,3.92118787]
[1739213614978,3.72613,2683.8,2683.3,0.19451787]
[1739213615139,7.45232,2683.8,2683.3,0.19451787]
[1739213615478,4.53119,2684.0,2683.3,3.92116787]
[1739213616479,8.25706,2684.0,2683.3,3.92116787]
[1739213616676,4.53119,2684.0,2683.3,3.92116787]
[1739213616881,0.8054,2684.0,2683.4,3.72658]
[1739213617055,7.45113,2684.2,2683.5,3.72639]
[1739213617056,3.72557,2684.2,2683.5,3.72639]
[1739213617253,4.53081,2684.3,2683.5,3.72635]
[1739213617454,9.88055,2684.5,2683.7,3.7261]
[1739213617661,13.60576,2684.5,2683.7,3.7261]
[1739213617986,3.72488,2684.7,2684.2,0.7629]
[1739213618145,9.88011,2684.8,2684.2,0.7629]
[1739213618342,8.18055524,2684.9,2684.2,4.48838]
[1739213618686,3.72462,2684.9,2684.2,0.7629]
[1739213618844,3.72462,2684.9,2684.2,4.48833]
[1739213619575,7.44922,2684.9,2684.2,4.48833]
[1739213619785,6.28864051,2684.8,2683.9,0.7629]
[1739213619968,3.72535,2684.4,2683.9,0.7629]
[1739213620166,7.45067,2684.4,2683.9,0.7629]
[1739213620479,3.72506,2684.6,2683.9,0.7629]
[1739213620682,3.72512,2684.5,2683.9,0.7629]
[1739213620845,7.45031,2684.5,2683.9,0.7629]
[1739213621181,3.72512,2684.5,2683.9,0.7629]
[1739213621388,3.72512,2684.5,2683.9,4.48881]
[1739213621881,3.72523,2684.4,2683.9,0.7629]
[1739213622088,3.72541,2684.3,2683.9,0.7629]
[1739213622381,3.7258,2684.0,2683.4,1.0409]
[1739213624950,3.72586,2684.0,2683.4,0.7629]
[1739213626076,3.72586,2684.0,2683.4,0.80016121]
[1739213626487,3.72586,2684.0,2683.4,4.48946]
[1739213626679,3.72586,2684.0,2683.4,0.7629]
[1739213627060,3.72601,2683.9,2683.4,0.7629]
[1739213627894,3.72572,2684.1,2683.4,0.7629]
[1739213628204,3.72561,2684.2,2683.5,3.72643]
[1739213628909,3.7254,2684.3,2683.6,0.7629]
[1739213629057,3.72531,2684.4,2683.7,3.72612]
[1739213629258,3.72517,2684.5,2683.8,0.7629]
[1739213629677,3.7253,2684.4,2683.8,0.7629]
[1739213629870,1.537474,2684.6,2683.8,0.7629]
[1739213630070,3.72566,2684.1,2683.4,4.48944]
[1739213630294,7.45142,2684.1,2683.4,4.48944]
[1739213630493,3.72566,2684.1,2683.4,4.48944]
[1739213631203,3.72566,2684.1,2683.5,3.72647]
[1739213631565,3.72566,2684.1,2683.5,3.72644]
[1739213632100,3.72514,2684.5,2683.4,0.7629]
[1739213632276,7.45169,2684.0,2683.4,0.7629]
[1739213632600,3.7258,2684.0,2683.4,0.7629]
[1739213634577,3.72591,2684.0,2683.4,0.7629]
[1739213634873,3.72603,2683.9,2683.4,0.7629]
[1739213635074,3.726,2683.9,2683.4,0.7629]
[1739213635875,3.72608,2683.8,2683.4,0.7629]
[1739213636080,3.72629,2683.7,2683.4,0.7629]
[1739213636282,3.72629,2683.7,2683.2,0.7629]
[1739213637326,3.72649,2683.5,2683.2,0.7629]
[1739213637525,3.72668,2683.4,2683.2,0.7629]
[1739213637675,0.7838,2683.6,2682.9,0.7629]
[1739213637876,3.72683,2683.3,2682.9,0.7629]
[1739213638204,3.72658,2683.5,2682.9,4.49013]
[1739213638406,3.72658,2683.5,2682.9,4.52739882]
[1739213638621,3.72663,2683.4,2682.9,0.7629]
[1739213639911,3.72658,2683.5,2682.9,0.7629]
[1739213640426,3.72658,2683.5,2682.9,0.80016882]
[1739213640581,3.72658,2683.5,2682.9,0.7629]
[1739213640997,3.72658,2683.5,2682.9,4.52744882]
[1739213641707,3.72658,2683.5,2682.9,4.49018]
[1739213642620,3.72627,2683.7,2683.1,3.72695]
[1739213642833,3.72627,2683.7,2683.1,7.45389]
[1739213643009,3.72627,2683.7,2683.0,0.7629]
[1739213643196,3.7265,2683.5,2683.0,0.7629]
[1739213643534,3.72693,2683.2,2682.8,0.278]
[1739213643733,3.72661,2683.4,2682.8,0.278]
[1739213644044,3.72675,2683.3,2682.8,0.278]
[1739213644342,0.7882,2683.5,2682.7,0.7629]
[1739213644633,3.72726,2683.0,2682.7,0.7629]
[1739213644804,3.72713,2683.1,2682.7,0.7629]
[1739213645010,3.72723,2683.0,2682.7,0.7629]
[1739213645207,3.72652,2683.5,2682.7,0.7629]
[1739213645545,3.72619,2683.7,2683.1,0.7629]
[1739213645705,3.72651,2683.5,2683.1,0.7629]
[1739213646029,3.72633,2683.6,2683.1,0.7629]
[1739213646231,3.72587,2684.0,2683.3,3.72665]
[1739213646536,3.72587,2684.0,2683.4,0.7629]
[1739213646839,3.72613,2683.8,2683.4,0.7629]
[1739213647023,3.72628,2683.7,2683.4,0.7629]
[1739213647217,1.52306229,2684.1,2683.4,0.7629]
[1739213647218,3.72646,2683.6,2683.4,0.7629]
[1739213648004,3.72613,2683.8,2683.2,0.7629]
[1739213648332,3.72629,2683.7,2683.2,0.7629]
[1739213649436,3.72613,2683.8,2683.2,0.7629]
[1739213649738,3.72634,2683.6,2683.2,0.7629]
[1739213650538,3.72653,2683.5,2683.2,0.7629]
[1739213650740,3.72698,2683.2,2683.0,0.7629]
[1739213650931,3.72713,2683.1,2682.8,0.7629]
[1739213651437,3.72678,2683.3,2682.8,0.7629]
[1739213651744,3.72711,2683.1,2682.8,0.7629]
[1739213651910,3.72689,2683.2,2682.8,0.7629]
[1739213652116,3.72697,2683.2,2682.8,0.7629]
[1739213652689,3.72709,2683.1,2682.8,0.7629]
[1739213653146,3.72697,2683.2,2682.8,0.7629]
[1739213653636,3.72711,2683.1,2682.8,0.7629]
[1739213654455,3.72721,2683.0,2682.8,0.7629]
[1739213654656,3.72711,2683.1,2682.8,0.7629]
[1739213655019,3.72681,2683.3,2682.8,0.7629]
[1739213655221,3.7269,2683.2,2682.8,0.7629]
[1739213656221,9.07635,2683.6,2683.0,3.72714]
[1739213656460,3.72651,2683.5,2683.0,3.72714]
[1739213656760,3.72661,2683.4,2682.8,4.49034]
[1739213657360,3.72661,2683.4,2682.9,3.72729]
[1739213658368,3.72633,2683.6,2682.8,0.7629]
[1739213658534,3.24266496,2683.7,2682.8,0.7629]
[1739213658535,0.7917,2683.5,2682.8,0.7629]
[1739213658750,3.72717,2683.0,2682.8,0.7629]
[1739213659464,3.72705,2683.1,2682.8,0.7629]
[1739213660572,7.45417,2683.1,2682.8,0.7629]
[1739213660747,3.72705,2683.1,2682.8,0.7629]
[1739213660944,3.72685,2683.3,2682.8,0.7629]
[1739213661131,4.51826,2683.5,2682.8,0.7629]
[1739213661332,0.7917,2683.5,2682.8,0.7629]
[1739213661566,3.7269,2683.2,2682.8,0.7629]
[1739213663333,3.72705,2683.1,2682.8,0.7629]
[1739213663636,3.72724,2683.0,2682.6,0.7629]
[1739213665981,7.45449,2683.0,2682.6,0.7629]
[1739213666176,3.72724,2683.0,2682.6,0.7629]
[1739213668201,3.72732,2682.9,2682.4,5.44357482]
[1739213668358,3.72759,2682.7,2682.4,0.19088146]
[1739213669505,7.45527,2682.7,2682.4,0.19088146]
[1739213669690,0.7917,2683.2,2682.4,0.19088146]
[1739213670004,3.72772,2682.7,2682.4,0.19088146]
[1739213670162,3.72754,2682.8,2682.4,0.19088146]
[1739213670365,3.72752,2682.8,2682.4,0.19088146]
[1739213670980,3.72742,2682.9,2682.4,0.19088146]
[1739213671181,3.72727,2683.0,2682.4,0.19088146]
[1739213671382,3.72731,2682.9,2682.4,0.19088146]
[1739213671915,3.72731,2682.9,2682.4,3.91882146]
[1739213672081,3.72704,2683.1,2682.5,3.72785]
[1739213672282,3.72683,2683.3,2682.7,3.72753]
[1739213672470,9.07662,2683.4,2682.9,0.7629]
[1739213673172,5.35,2683.4,2682.9,0.7629]
[1739213673376,3.72675,2683.3,2682.9,0.7629]
[1739213675931,3.72661,2683.4,2682.9,4.49019]
[1739213676219,3.72661,2683.4,2682.9,8.21748]
[1739213676590,3.72661,2683.4,2682.9,4.49019]
[1739213677524,3.72661,2683.4,2682.9,8.21741]
[1739213677720,3.72661,2683.4,2682.9,4.49012]
[1739213680337,9.07622,2683.7,2683.2,3.72685]
[1739213680486,3.0,2683.9,2683.2,3.72685]
[1739213680487,3.72603,2683.9,2683.4,3.72657]
[1739213680683,3.72584,2684.0,2683.5,4.48934]
[1739213680897,3.72593,2683.9,2683.5,4.48934]
[1739213682533,3.72571,2684.1,2683.6,0.03726173]
[1739213683311,3.72575,2684.1,2683.6,0.03726173]
[1739213684291,3.72579,2684.0,2683.6,0.03726173]
[1739213684493,9.0756,2684.2,2683.7,4.48902]
[1739213684824,5.35,2684.2,2683.8,3.726]
[1739213685691,5.35,2684.2,2683.7,4.48902]
[1739213685891,9.07552,2684.2,2683.7,4.48902]
[1739213686526,3.72552,2684.2,2683.7,4.48902]
[1739213686747,3.72572,2684.1,2683.7,0.7629]
[1739213689299,7.45112,2684.2,2683.7,4.48909]
[1739213689494,0.7354828,2684.4,2683.7,0.7629]
[1739213689495,3.72606,2683.8,2683.7,0.7629]
[1739213689735,3.72606,2683.8,2683.4,0.7629]
[1739213690379,7.45222,2683.8,2683.4,0.7629]
[1739213690539,3.72621,2683.7,2683.4,0.7629]
[1739213690701,3.72634,2683.6,2683.4,0.7629]
[1739213691745,3.72621,2683.7,2683.4,0.7629]
[1739213691972,3.72647,2683.5,2683.4,0.7629]
[1739213692111,3.72647,2683.5,2683.2,0.7629]
[1739213692548,7.45306,2683.5,2683.2,0.7629]
[1739213692847,3.72647,2683.5,2683.2,0.7629]
[1739213695138,3.72637,2683.6,2683.2,0.7629]
[1739213695334,7.45263,2683.7,2683.2,0.7629]
[1739213695537,3.7263,2683.7,2683.2,0.7629]
[1739213695765,3.7263,2683.7,2683.2,4.48969]
[1739213695963,3.7263,2683.7,2683.2,0.7629]
[1739213696266,3.7263,2683.7,2683.2,4.48978]
[1739213696425,0.76021035,2684.0,2683.3,3.72675]
[1739213696623,0.76021035,2684.0,2683.4,3.72648]
[1739213696839,3.726,2683.9,2683.4,3.72648]
[1739213697666,3.726,2683.9,2683.5,0.03726082]
[1739213697906,3.726,2683.9,2683.4,7.45301]
[1739213698026,3.726,2683.9,2683.5,3.76373081]
[1739213698226,0.7963,2684.4,2683.8,3.72597]
[1739213698466,3.72543,2684.3,2683.8,3.72605]
[1739213698766,3.72543,2684.3,2683.7,3.72619]
[1739213698919,3.72543,2684.3,2683.6,0.7629]
[1739213698920,3.72566,2684.1,2683.6,0.7629]
[1739213699126,3.72606,2683.8,2683.6,0.7629]
[1739213699749,3.72591,2684.0,2683.6,0.7629]